Cogmind - Beta 17.1 @@@ ROGUE MODE // 2026.09.01 @ 08:00:46 Player: Dadrick Result: Destroyed by AP7-3 with Enhanced Gamma Rifle Performance ------------- Evolutions (8) 4000 Regions Visited (24) 4800 Robots Destroyed (382) 1910 Value Destroyed (15603) 15603 Prototype IDs (113) 2260 Alien Tech Used (6) 1200 Bonus (6464) 6464 TOTAL SCORE: 36237 Bonus ------- High Alert Combat Kills 307 Follower Combat Kills 3310 Network Hubs Disabled 200 Registered with UFD 300 Met Optimus in HQ 500 Met Zhirov 300 MAIN.C Attacked Proxy Base 500 Built Enhanced Grunts 300 A7 Reached Mainframe 300 Met R17 at Cetus 500 Hacked Protovariant 500 Met R17 at Research 2000 Scanned by Researcher 500 Friendly Fire -3053 Cogmind --------- Core Integrity 0/1450 Matter 261/300 Energy 99/100 System Corruption 56% Temperature Cool (9) Movement Core (50) Location -2/Protoforge Parts ------- > --- POWER (2) -------- (None) > --- PROPULSION (6) --- (None) > --- UTILITY (11) ----- Experimental Signal Interpreter Experimental Core Analyzer Graphene Brace > --- WEAPON (4) ------- (None) > --- INVENTORY (5) ---- Experimental Coolant Injector Core Cannon Sigix Broadsword Peak State ------------ > --- POWER ------------ Micro Antimatter Reactor Micro Antimatter Reactor > --- PROPULSION ------- Advanced Myomer Leg Enhanced Biometal Leg Centrium Leg Heavy Shield Leg High-density Centrium Leg > --- UTILITY ---------- High-capacity Storage Unit Advanced Energy Well Enhanced Optical Array Advanced Sensor Array Experimental Signal Interpreter Improved Targeting Computer Experimental Core Analyzer Centrium Medium Armor Plating Medium Regenerative Plating Graphene Brace Experimental Hacking Suite > --- WEAPON ----------- Core Cannon Sigix Broadsword > --- INVENTORY -------- Graviton Reactor Centrium Leg Heavy Shield Leg Experimental Coolant Injector Improved Matter Compressor Advanced Sensor Array Transmission Jammer Improved Force Field Compact HERF Cannon Railgun Hypervelocity Railgun Hypervelocity Multirail Concept XC Strikerail Concept XC Strikerail Compact Mass Driver Enhanced Hardcell Cannon Gamma Bomb Array [Rating: 211] Favorites ----------- Power Light Nuclear Core Engine Heavy Deuterium Engine Power Core Light Nuclear Core Reactor Light Antimatter Reactor Propulsion Myomer Leg Treads Light Treads Leg Myomer Leg Wheel Compact Wheel Hover Unit Combat Gravmag System Utility High-capacity Storage Unit Device Improved Sensor Array Storage High-capacity Storage Unit Processor Experimental Signal Interpreter Hackware Experimental Hacking Suite Protection Medium Regenerative Plating Artifact Phase Redirector Weapon Chainsword Energy Gun Advanced Variable Charge Gun Energy Cannon Matter Neutralizer Ballistic Gun Autogun Ballistic Cannon Compact Mass Driver Launcher Heavy Missile Launcher Special Weapon Mining Laser Slashing Weapon Chainsword Piercing Weapon Lance Build | -11 -10 -9 -8 -7 -7 -7 -7 -5 -5 -5 -5 -4 -4 -4 -4 -4 -4 -4 -4 -3 -3 -2 -2 -2 ------- Run | Yrd Mat Mat Mat Fac Sto Rec Scr Fac Upp Upp Zhi Pro Fac Was Fac Ext Cet Arc Hub Res Qua Res Tes Frg Slots Evolved 16 | . . 2 2 2 . . . 4 . . . . 2 . . . . . . 2 . 2 . . Power 1 | . . . . 1 . . . . . . . . . . . . . . . . . . . . Propulsion 4 | . . 1 1 . . . . 1 . . . . 1 . . . . . . . . . . . Utility 9 | . . 1 . 1 . . . 3 . . . . 1 . . . . . . 1 . 2 . . Weapon 2 | . . . 1 . . . . . . . . . . . . . . . . 1 . . . . Parts Attached 300 | 7 12 19 9 23 23 10 5 33 6 1 7 13 15 2 11 13 14 1 5 17 18 5 18 13 Power 42 | 1 1 1 . 4 3 2 . 6 . . 1 2 1 . 4 3 2 . . 2 2 1 4 2 Engine 6 | 1 . . . 1 1 . . 3 . . . . . . . . . . . . . . . . Core 14 | . 1 1 . 3 2 2 . 2 . . . . 1 . 2 . . . . . . . . . Reactor 22 | . . . . . . . . 1 . . 1 2 . . 2 3 2 . . 2 2 1 4 2 Propulsion 99 | 2 4 7 3 9 10 6 1 12 . 1 2 . 5 1 2 3 8 . 1 5 8 2 4 3 Treads 34 | . 4 7 3 9 2 3 1 3 . . . . . . . . 2 . . . . . . . Leg 40 | 2 . . . . 8 1 . . . . . . . . . . 6 . 1 5 8 2 4 3 Wheel 5 | . . . . . . 2 . 3 . . . . . . . . . . . . . . . . Hover 20 | . . . . . . . . 6 . 1 2 . 5 1 2 3 . . . . . . . . Flight . | . . . . . . . . . . . . . . . . . . . . . . . . . Utility 103 | 1 2 9 4 7 6 1 1 13 6 . 3 8 6 1 5 6 1 1 3 4 6 1 6 2 Device 48 | . 1 2 2 3 3 1 . 8 3 . . 3 2 . 3 4 . 1 2 1 4 . 5 . Storage 6 | 1 . 2 . . . . . . . . 1 . . . 1 . . . . . . . . 1 Processor 14 | . . . . 1 1 . . 2 2 . . 2 2 . . . . . . 1 1 1 1 . Hackware 4 | . . . 1 . . . . . . . . 1 1 . 1 . . . . . . . . . Protection 30 | . 1 5 1 3 2 . 1 3 1 . 2 2 1 1 . 2 1 . 1 2 . . . 1 Artifact 1 | . . . . . . . . . . . . . . . . . . . . . 1 . . . Weapon 56 | 3 5 2 2 3 4 1 3 2 . . 1 3 3 . . 1 3 . 1 6 2 1 4 6 Energy Gun 3 | 1 . . . . . . . . . . . . . . . . 1 . . 1 . . . . Energy Cannon 7 | . . . . . . . . . . . . 1 . . . . . . . 2 . 1 2 1 Ballistic Gun 27 | 2 4 2 2 . 3 . 1 1 . . . 1 . . . . 1 . 1 3 1 . . 5 Ballistic Cannon 4 | . . . . 1 . . . . . . . . 1 . . . . . . . . . 2 . Launcher 3 | . . . . . 1 . 2 . . . . . . . . . . . . . . . . . Special Weapon 4 | . 1 . . . . . . . . . . . 1 . . 1 1 . . . . . . . Impact Weapon . | . . . . . . . . . . . . . . . . . . . . . . . . . Slashing Weapon 7 | . . . . 2 . 1 . . . . 1 1 1 . . . . . . . 1 . . . Piercing Weapon 1 | . . . . . . . . 1 . . . . . . . . . . . . . . . . Special Melee Weapon . | . . . . . . . . . . . . . . . . . . . . . . . . . Unidentified Prototypes 16 | . . 1 . . 1 . 1 1 . . 5 . . . . . . . . . 3 . 2 2 Parts Lost 100 | . 2 3 2 3 11 1 . 13 . . . 5 5 . 4 9 . . 5 2 3 2 . 30 Power 20 | . . 1 . 1 3 . . 3 . . . 1 2 . 3 1 . . 1 . 1 . . 3 Propulsion 27 | . 2 . . 1 5 1 . 2 . . . . 2 . 1 3 . . 2 . 1 . . 7 Utility 39 | . . 1 1 1 3 . . 8 . . . 3 1 . . 5 . . 1 . 1 2 . 12 Weapon 14 | . . 1 1 . . . . . . . . 1 . . . . . . 1 2 . . . 8 Highest Loss Streak 18 | . 1 2 1 1 6 1 . 4 . . . 3 2 . 2 3 . . 4 1 2 1 . 18 To Critical Strikes 1 | . . . . . 1 . . . . . . . . . . . . . . . . . . . Average Backups 18 | 1 6 17 19 19 18 19 19 18 18 18 18 18 18 19 19 18 19 20 19 17 19 18 17 15 Power 1 | . 1 1 1 1 1 2 1 1 1 1 1 1 . . . 1 1 1 1 1 1 1 1 1 Propulsion 3 | . 2 5 7 4 1 2 2 2 2 2 2 2 2 2 2 4 4 3 2 3 2 3 2 1 Utility 6 | . . 3 5 8 8 8 10 7 6 7 7 7 6 6 7 4 5 7 6 5 7 7 8 6 Weapon 6 | . 3 6 5 6 6 7 6 6 8 7 6 5 5 6 5 5 7 7 7 5 5 6 5 6 Tool/Special . | . . . . . . . . . . . . . . . . . . . . . . . . . Unused Backups 68 | . 4 7 1 8 1 2 1 5 1 1 4 1 2 1 3 6 3 . 1 7 4 2 2 1 Power 11 | . . 1 . . 1 . . . . . . . 1 . 2 3 . . . 2 . 1 . . Propulsion 17 | . 3 2 . 1 . 1 . 3 . . 2 1 . . . 2 1 . . 1 . . . . Utility 16 | . . . 1 1 . 1 1 2 . . 1 . . 1 1 . 1 . 1 3 1 . 1 . Weapon 23 | . 1 4 . 6 . . . . 1 1 1 . 1 . . 1 1 . . 1 2 1 1 1 Tool/Special 1 | . . . . . . . . . . . . . . . . . . . . . 1 . . . Average Slot Usage (%) 94 | . 98 99 99 98 87 95 100 90 93 88 88 95 87 78 83 88 92 100 98 99 95 94 94 86 Engine 1 | . 10 . . . 2 . 6 1 11 11 8 2 . . . . . . . . . . . . Core 4 | . 3 10 9 13 5 10 7 8 . . . . 1 . 2 . . . . . . . . . Reactor 3 | . . . . . . . . . . . 1 5 7 5 3 5 10 10 9 8 8 8 7 7 Treads 10 | . 22 32 35 29 9 6 15 14 . . . . . . . . 6 . . . . . . . Leg 8 | . 4 . . . 16 11 . . . . . . . . . . 9 31 30 28 27 26 26 22 Wheel 1 | . . . . . . 11 15 6 . . . . . . . . . . . . . . . . Hover 7 | . . . . . . . . 6 29 29 29 29 30 26 26 30 7 . . . . . . . Device 9 | . 4 6 9 10 4 5 6 13 13 11 11 12 7 5 6 11 10 10 9 13 12 12 11 10 Storage 6 | . 14 13 9 7 7 7 7 5 5 5 5 5 5 5 5 5 5 5 5 4 4 4 4 4 Processor 11 | . . . . 3 13 15 15 9 16 17 17 12 18 21 21 15 15 15 14 9 17 20 21 18 Hackware 2 | . . . . . . . . . . . . 1 6 5 6 5 5 5 5 4 4 4 4 4 Protection 5 | . 9 12 9 7 3 1 . 3 2 . . 5 2 5 2 2 5 5 6 9 2 4 4 5 Ballistic Gun 7 | . 21 20 26 11 8 7 2 1 . . . . . . . . 4 5 5 9 5 5 . . Slashing Weapon 6 | . . . . 10 12 15 12 11 11 11 11 15 5 5 8 9 6 5 3 1 3 4 3 3 Peak Build Rating 211 | 6 14 21 30 46 48 46 47 81 81 76 89 100 121 107 121 127 147 141 146 159 178 193 204 211 Average Rating 91 | 5 10 17 25 40 40 43 45 65 77 72 77 88 109 102 108 116 141 140 139 151 165 181 190 184 On Entrance 87 | . 6 14 17 29 45 44 42 47 71 75 72 85 95 102 102 111 127 141 141 120 152 178 175 201 Avg Prop Armor Cover (%) 16 | . . . . . 6 16 19 18 3 4 . . . . . . 2 . . . . . . 34 Naked Turns . | . . . . . . . . . . . . . . . . . . . . . . . . . Heaviest Build 125 | 13 17 57 62 72 70 62 78 88 77 69 71 89 89 66 73 83 100 99 99 124 117 117 125 120 Greatest Support 182 | 20 46 66 82 88 88 65 26 96 70 71 71 70 90 70 73 75 160 143 143 150 170 172 180 182 Greatest Overweight (x) 5 | . . 1 . 1 2 3 2 5 1 1 1 1 1 . 1 1 1 . 1 . . . . . Average Overweight (x) . | . . . . . . 1 2 . . . . . . . . . . . . . . . . . Largest Inventory Capacity 20 | 8 8 20 20 20 20 20 20 20 20 20 20 20 20 20 20 20 20 20 20 20 20 20 20 20 Average Capacity 19 | 7 8 19 20 20 20 20 20 20 20 20 20 20 20 20 20 20 20 20 20 20 20 20 20 19 Most Carried 20 | 2 8 20 20 20 20 20 20 20 20 20 20 20 20 20 20 20 20 20 20 20 20 20 20 20 Average Carried 18 | 1 6 17 19 19 18 19 19 19 19 19 19 19 19 19 19 18 19 20 19 17 19 19 19 17 Final Capacity 20 | 8 8 20 20 20 20 20 20 20 20 20 20 20 20 20 20 20 20 20 20 20 20 20 20 5 Final Carried 20 | 2 8 20 20 20 20 20 20 20 20 20 19 20 18 20 19 20 20 20 17 19 20 20 19 5 Class Distribution -------------------- 22% | Mutant 20% | Scavenger-Mutant 16% | Gladiator 10% | Commander-Gladiator 9% | Scavenger-Assassin 6% | Scavenger-Tank 3% | Commander-Mutant Dominant Class ---------------- Mutant | -10/Materials Scavenger-Mutant | -9/Materials Scavenger-Tank | -8/Materials Mutant | -7/Factory Mutant | -7/Storage Gladiator | -7/Recycling Commander-Gladiator | -7/Scraptown Gladiator | -5/Factory Gladiator | -5/Upper Caves Gladiator | -5/Upper Caves Gladiator | -5/Zhirov Gladiator | -4/Proximity Caves Mutant | -4/Factory Mutant | -4/Waste Gladiator | -4/Factory Commander-Gladiator | -4/Extension Commander-Mutant | -4/Cetus Scavenger-Mutant | -4/Archives Scavenger-Mutant | -4/Hub_04(d) Scavenger-Skirmisher | -3/Research Scavenger-Mutant | -3/Quarantine Scavenger-Assassin | -2/Research Scavenger-Assassin | -2/Testing Scavenger-Assassin | -2/Protoforge Resources | -11 -10 -9 -8 -7 -7 -7 -7 -5 -5 -5 -5 -4 -4 -4 -4 -4 -4 -4 -4 -3 -3 -2 -2 -2 ----------- Run | Yrd Mat Mat Mat Fac Sto Rec Scr Fac Upp Upp Zhi Pro Fac Was Fac Ext Cet Arc Hub Res Qua Res Tes Frg Matter Collected 12605 | 132 830 1113 787 830 728 200 75 504 207 24 312 1325 408 80 477 433 208 24 409 643 872 235 999 750 Remotely 1283 | . . . . . 217 . . . . . . 1066 . . . . . . . . . . . . Salvage Created 19140 | 117 982 1759 980 1091 752 767 . 1834 178 . 112 598 665 253 1195 1204 46 102 516 703 1504 390 1622 1770 Parts 1011 | 2 62 115 67 54 36 31 . 87 9 . 1 24 30 2 64 50 9 13 24 30 91 26 76 108 Haulers Intercepted 18 | . 1 5 2 . 1 . . 1 . . . . 1 . 1 1 . . 1 3 1 . . . Recyclers Shooed 5 | . . 1 1 1 . . . 1 . . . . . . . . . . . . . . 1 . Parts Field Recycled . | . . . . . . . . . . . . . . . . . . . . . . . . . Retrieved Matter . | . . . . . . . . . . . . . . . . . . . . . . . . . Parts Self-Destructed 56 | . . . . . . . . . 4 . 1 51 . . . . . . . . . . . . Prevented 55 | . . . . . . . . . . . . 55 . . . . . . . . . . . . Parts Restored . | . . . . . . . . . . . . . . . . . . . . . . . . . Kills | -11 -10 -9 -8 -7 -7 -7 -7 -5 -5 -5 -5 -4 -4 -4 -4 -4 -4 -4 -4 -3 -3 -2 -2 -2 ------- Run | Yrd Mat Mat Mat Fac Sto Rec Scr Fac Upp Upp Zhi Pro Fac Was Fac Ext Cet Arc Hub Res Qua Res Tes Frg Combat Hostiles Destroyed 254 | . 26 25 20 19 19 3 . 22 4 . . 9 4 1 17 9 . . 5 8 16 6 16 25 Melee 95 | . . . . 12 6 3 . 22 1 . . 2 4 . 4 8 . . . . 5 5 11 12 Guns 106 | . 26 25 20 7 3 . . . . . . . . 1 . . . . 5 1 11 . . 7 Cannons 17 | . . . . . . . . . . . . 1 . . . . . . . 4 . 1 5 6 AOE 33 | . . . . . 10 . . . 3 . . 3 . . 13 1 . . . 3 . . . . Classes Destroyed 23 | 2 6 4 1 1 2 . . 1 . . . . . 1 . . . . . 1 1 . 2 1 Worker 29 | . 2 8 1 . . . . 2 . . . . 3 . 7 . . . 1 1 2 1 . 1 Builder 26 | . . . 2 1 . 2 . 3 . . . . . . 3 2 . . 2 . 3 1 3 4 Tunneler 3 | 1 . 1 . 1 . . . . . . . . . . . . . . . . . . . . Hauler 18 | . 1 5 2 . 1 . . 1 . . . . 1 . 1 1 . . 1 3 1 . . . Recycler 27 | 1 . 1 2 2 2 5 . 2 . . . . 2 . 3 4 . . . . 1 . 2 . Mechanic 4 | . . . . . . . . 1 . . . . . . 1 . . . . . . . 2 . Operator 7 | . . 1 . . . . . . . . . . . . 1 1 . 3 . . . . 1 . Drone 1 | . . . . . . . . . . . . . . . . . . . . . . . . 1 Watcher 12 | . 2 3 1 . 1 . . 1 . . . . . . 2 1 . . . 1 . . . . Swarmer 44 | . 9 . 11 4 3 . . 1 . . . 1 . . 13 . . . . . . 2 . . Grunt 89 | . 16 14 6 4 6 . . 10 4 . . 4 . . . 4 . . 2 6 2 . 6 5 Brawler 6 | . . 1 . . 2 . . 1 . . . . . . . . . . . . . . . 2 Duelist 2 | . . 1 . . . . . 1 . . . . . . . . . . . . . . . . Protector 4 | . . . . . 2 . . . . . . . . . . . . . 1 . . . . 1 Sentry 35 | . . 9 3 6 4 3 . 1 . . . . . . 2 5 . . . 1 . . . 1 Specialist 3 | . . . . . . . . . . . . . . . . . . . . . 3 . . . Hunter 8 | . . . . . 2 . . 1 . . . 4 . . . . . . . . . . . 1 Programmer 52 | . . . . 5 . . . 7 . . . . 4 . 2 . . . . . 11 4 9 10 Q-Series 1 | . . . . . . . . . . . . . . . . . . . . . . . 1 . Compactor 1 | . . . . . . . . . . . . . . 1 . . . . . . . . . . Lightning 2 | . . . . . . . . . . . . . . . . . . . 2 . . . . . Hotshot 4 | . . . . . . . . . . . . . . . . . . . . . . . . 4 Investigator 1 | . . . . . . . . . . . . . . . . . . . . . . . 1 . Striker 1 | . . . . . . . . . . . . . . . . . . . . 1 . . . . Subdweller 1 | . 1 . . . . . . . . . . . . . . . . . . . . . . . Best Kill Streak 16 | 2 7 6 7 5 16 4 . 5 3 . . 3 2 1 9 3 . 2 3 5 4 2 6 11 Combat Bots Only 12 | . 7 3 5 5 12 1 . 3 3 . . 3 2 1 5 2 . . 2 3 4 2 5 11 Max Kills in Single Turn 6 | 1 2 2 3 2 3 1 . 1 2 . . 1 1 1 6 1 1 1 1 3 2 1 1 2 Gunslinging 2 | . 1 . 2 1 . . . . . . . . . . . . . . . . 1 . . 1 Exploded 3 | . . . . . 3 . . . 2 . . 1 . . 3 1 . . . 2 . . . . Melee 1 | . . . . 1 1 1 . 1 1 . . 1 1 . 1 1 . . . . 1 1 1 1 Uniques/NPCs Destroyed 1 | . . . . . . . . . . . . . . . . . 1 . . . . . . . A7 (-4/Cetus) Combat | -11 -10 -9 -8 -7 -7 -7 -7 -5 -5 -5 -5 -4 -4 -4 -4 -4 -4 -4 -4 -3 -3 -2 -2 -2 -------- Run | Yrd Mat Mat Mat Fac Sto Rec Scr Fac Upp Upp Zhi Pro Fac Was Fac Ext Cet Arc Hub Res Qua Res Tes Frg Hostile Shots Fired 2636 | . 121 94 64 314 302 69 . 212 18 . . 72 68 . 109 103 9 3 66 47 202 62 293 408 Missed 796 | . 38 15 18 95 91 24 . 51 10 . . 26 25 . 46 34 2 1 19 22 71 22 81 105 Hits 1840 | . 83 79 46 219 211 45 . 161 8 . . 46 43 . 63 69 7 2 47 25 131 40 212 303 Melee 34 | . . 1 . . . . . 10 . . . . . . . . . . . 2 . . 12 9 Projectile 1806 | . 83 78 46 219 211 45 . 151 8 . . 46 43 . 63 69 7 2 47 23 131 40 200 294 AOE 5 | . . . . . . . . . . . . . 2 . . . . . . . . . 1 2 Critical Strikes 101 | . 1 7 . 3 4 . . 7 1 . . 2 . . 1 6 1 . 8 2 12 3 17 26 Actively Blocked 29 | . . . . . . . . . 1 . . . . . . 1 . . . . 2 2 2 21 Part Disruptions 9 | . . . . . . . . . . . . . . . . . . . . 1 4 . 4 . Damage Taken 31792 | . 815 1133 525 1604 2351 308 . 3059 159 . . 1208 838 . 1182 1431 225 58 1696 695 3171 901 3022 7411 Core 3442 | . 146 150 25 93 255 24 . 247 32 . . 81 190 . 164 415 . . 240 27 222 69 120 942 Absorbed by Shields 3598 | . . . . 627 123 17 . 262 . . . 81 . . . 260 81 . . . . . 1892 255 Redirected to Shielding 250 | . 12 22 . . . . . . 7 . . . . . . 84 . . . . . . . 125 Ignored by Resistances 316 | . . . 73 178 65 . . . . . . . . . . . . . . . . . . . Regen/Repaired (Parts) 5318 | . . . . . . . 909 34 . . . 77 . . 126 . 72 81 92 408 896 776 903 944 Core Remaining (%) 62 | 100 41 62 95 . . . 46 . . . . 64 . . . . . . 12 . 80 . . . Volleys Fired 596 | 8 88 107 58 23 17 . . 2 4 . . 34 8 4 26 12 4 1 36 39 49 4 27 45 Largest 4 | 2 2 2 3 3 3 . . 1 1 . . 1 1 1 1 1 2 1 3 4 4 2 3 4 Hottest 420 | 60 100 100 100 75 84 . . 33 39 . . 81 39 33 39 45 115 35 240 325 275 145 420 335 Shots Fired 1156 | 14 171 208 162 52 38 . . 2 4 . . 32 8 4 26 12 5 1 77 83 121 7 54 75 Gun 964 | 14 166 202 158 45 33 . . 2 . . . 10 5 4 18 9 3 1 77 54 117 2 . 44 Cannon 144 | . . . . 7 . . . . . . . 16 . . . . . . . 27 4 5 54 31 Launcher 30 | . . . . . 5 . . . 4 . . 6 2 . 8 3 . . . 2 . . . . Special 18 | . 5 6 4 . . . . . . . . . 1 . . . 2 . . . . . . . Kinetic 870 | 8 135 202 158 52 33 . . 2 . . . 10 5 4 18 9 2 1 44 31 74 2 33 47 Thermal 236 | 6 36 6 4 . . . . . . . . . . . . . 1 . 33 50 47 5 21 27 Explosive 30 | . . . . . 5 . . . 4 . . 6 2 . 8 3 . . . 2 . . . . Electromagnetic 17 | . . . . . . . . . . . . 16 . . . . . . . . . . . 1 Robot Hit Streak 25 | 4 16 23 13 19 7 . . 1 2 . . 6 4 8 10 2 4 . 7 11 25 2 13 15 Robot Miss Streak 6 | 3 5 4 6 3 4 . . 1 3 . . 2 . . 1 1 2 3 6 4 3 1 2 3 Penetration Max 2 | . . . . . 1 . . . . . . . . . . 1 . . 1 1 1 . . 2 Secondary Targets 25 | . 3 1 5 3 . . . . . . . . . . . . . . 3 1 5 . . 4 Max Gunslinging Chain 2 | . 1 1 2 1 . . . . . . . . . . . . . . 1 1 2 . . 1 Shots Hit Robots 1136 | 9 101 150 104 102 44 22 . 112 4 . 3 22 28 4 39 60 14 4 34 33 101 14 63 69 Core Hits 591 | 3 45 63 44 34 49 8 . 43 5 . 1 17 10 1 31 51 3 3 20 39 35 6 29 51 Critical Kills 24 | . 1 . 1 . . . . . . . . . . . . . . . 4 1 5 . . 12 Critical Parts Destroyed 25 | . . . 1 . 1 . . . . . . . . . . 2 . . 3 2 5 1 1 9 Critical Strikes 116 | . 1 . 2 13 3 3 . 14 1 . . . 4 . 2 15 . . 7 3 13 1 8 26 Destroy 52 | . 1 . 2 . 1 . . . . . . . . . . 2 . . 7 3 10 1 1 24 Blast 4 | . . . . . . . . . . . . . . . . . . . . . . . 4 . Sever 60 | . . . . 13 2 3 . 14 1 . . . 4 . 2 13 . . . . 3 . 3 2 Melee Attacks 835 | . . . . 125 37 27 . 155 8 . 3 12 51 . 84 79 11 4 3 2 71 37 70 56 Impact . | . . . . . . . . . . . . . . . . . . . . . . . . . Slashing 833 | . . . . 125 37 27 . 153 8 . 3 12 51 . 84 79 11 4 3 2 71 37 70 56 Piercing 2 | . . . . . . . . 2 . . . . . . . . . . . . . . . . Sneak Attacks 97 | . . . . 9 2 8 . 11 . . . 1 7 . 11 11 11 3 2 1 7 2 6 5 Combat Hostiles 1 | . . . . . . . . . . . . . . . 1 . . . . . . . . . Follow-up Attacks 43 | . . . . 8 4 1 . 13 1 . . 4 . . 2 10 . . . . . . . . Damage Inflicted 49723 | 106 1448 2293 1631 3183 3320 1283 . 4432 444 . 261 1371 1691 27 3918 4086 827 412 1242 1766 4938 1098 4451 5495 Guns 11380 | 106 1448 2293 1622 591 397 . . 20 . . . . . 27 14 47 24 . 1041 739 2064 8 . 939 Cannons 4449 | . . . . . . . . . . . . 392 . . . . . . . 255 . 38 1641 2123 Explosions 6008 | . . . . . 2119 . . . 373 . . 580 . . 1632 616 . . . 688 . . . . Melee 27866 | . . . . 2592 804 1283 . 4412 71 . 261 399 1691 . 2272 3423 803 412 190 84 2874 1052 2810 2433 Ramming 20 | . . . 9 . . . . . . . . . . . . . . . 11 . . . . . Kinetic 10533 | 53 1197 2293 1622 591 397 . . 20 . . . . . 27 14 47 24 . 639 481 1237 8 913 970 Thermal 4862 | 53 251 . . . . . . . . . . . . . . . . . 402 513 827 38 728 2050 Explosive 6008 | . . . . . 2119 . . . 373 . . 580 . . 1632 616 . . . 688 . . . . Electromagnetic 434 | . . . . . . . . . . . . 392 . . . . . . . . . . . 42 Impact . | . . . . . . . . . . . . . . . . . . . . . . . . . Slashing 27823 | . . . . 2592 804 1283 . 4369 71 . 261 399 1691 . 2272 3423 803 412 190 84 2874 1052 2810 2433 Piercing 43 | . . . . . . . . 43 . . . . . . . . . . . . . . . . Highest Corruption 56 | . 1 . . 2 2 2 . 13 13 13 13 13 3 3 3 1 1 1 13 11 40 5 23 56 Average Corruption 8 | . 1 . . 1 2 2 . 6 13 13 13 13 2 3 1 1 1 1 5 9 22 4 15 29 Corruption Purged 15 | . . . . . . . . 6 . . . . . . 3 . . 1 . . . . 5 . Corruption Blocked . | . . . . . . . . . . . . . . . . . . . . . . . . . Effects 439 | . 8 . . 21 10 11 . 38 23 11 5 48 4 6 9 11 3 1 2 21 77 5 52 73 Message Errors 108 | . 1 . . 5 3 2 . 11 4 5 1 9 2 2 3 2 1 . . 8 18 2 10 19 Matter Fused 89 | . 2 . . 2 1 2 . 6 8 . . 13 1 2 1 3 1 . 2 4 15 1 8 17 Heat Flow Errors 54 | . 1 . . 4 1 4 . 7 1 1 3 6 . . 1 3 . . . 3 10 . 4 5 Energy Discharges 59 | . 1 . . 4 3 2 . 4 3 2 . 9 . . . 2 . . . 3 8 1 7 10 Parts Rejected 5 | . . . . 1 . . . . . . . . . . 1 . . . . . 1 . 2 . Parts Fused 2 | . . . . . . . . . . . . 2 . . . . . . . . . . . . Data Loss (minor) 50 | . 2 . . 3 . 1 . 6 4 1 1 6 1 2 2 . 1 . . 1 4 . 7 8 Data Loss (major) 18 | . . . . 2 . . . 1 1 1 . 1 . . 1 . . . . 1 6 . 3 1 Misfires 13 | . . . . . . . . . . . . . . . . . . . . . 5 1 5 2 Alerts 13 | . 1 . . . 1 . . 2 1 1 . . . . . 1 . 1 . 1 1 . 1 2 Misdirections 8 | . . . . . . . . 1 1 . . . . . . . . . . . . . 3 3 Weapon Failures 20 | . . . . . 1 . . . . . . 2 . . . . . . . . 9 . 2 6 Overload Shots 6 | . . . . . . . . . . . . . . . . . . . 1 . 5 . . . Overflow Damage 4371 | . . . . 220 63 213 . 390 12 . 88 83 226 . 532 444 81 74 . . 654 361 640 290 Projectiles 152 | . . . . . . . . . . . . 29 . . . . . . . . . . 77 46 Explosions 138 | . . . . . 23 . . . 12 . . . . . 103 . . . . . . . . . Melee 4081 | . . . . 220 40 213 . 390 . . 88 54 226 . 429 444 81 74 . . 654 361 563 244 Knockbacks 10 | . . . . . . . . . . . . . . . . . . . . . . . 9 1 Impact . | . . . . . . . . . . . . . . . . . . . . . . . . . Kinetic 10 | . . . . . . . . . . . . . . . . . . . . . . . 9 1 Secondary . | . . . . . . . . . . . . . . . . . . . . . . . . . Self-Inflicted Damage 403 | . . . . 217 186 . . . . . . . . . . . . . . . . . . . Shots 9 | . . . . 2 7 . . . . . . . . . . . . . . . . . . . Rammed 1 | . . . 1 . . . . . . . . . . . . . . . . . . . . . Targets Rammed 2 | . . . 1 . . . . . . . . . . . . . . . 1 . . . . . Kicked 1 | . . . . . . . . . . . . . . . . . . . 1 . . . . . Crushed . | . . . . . . . . . . . . . . . . . . . . . . . . . Highest Temperature 449 | . 168 145 232 271 187 225 . 276 449 121 173 333 3 . 254 252 . . 156 318 207 48 193 206 Average Temperature 64 | . 15 24 62 77 51 103 . 60 153 62 66 108 3 . 137 108 . . 33 77 77 19 82 81 Received Heat Transfer 4261 | . 267 585 225 330 339 84 . 553 60 . . 45 78 . 108 207 6 . 63 111 39 . 254 907 Effects 9 | . . . 3 . . . . . 4 . . 1 . . . . . . . . . . . 1 Shutdowns 1 | . . . . . . . . . 1 . . . . . . . . . . . . . . . Energy Bleed 4 | . . . . . . . . . 2 . . 1 . . . . . . . . . . . 1 Interference 3 | . . . 3 . . . . . . . . . . . . . . . . . . . . . Short Circuit 1 | . . . . . . . . . 1 . . . . . . . . . . . . . . . Siege Activations . | . . . . . . . . . . . . . . . . . . . . . . . . . Martial Activations . | . . . . . . . . . . . . . . . . . . . . . . . . . Shielding Activations 1 | . . . . . . . . . . . . . . . . . . . . . . . . 1 Total Turns 2 | . . . . . . . . . . . . . . . . . . . . . . . . 2 Longest Duration 2 | . . . . . . . . . . . . . . . . . . . . . . . . 2 Robots Disrupted . | . . . . . . . . . . . . . . . . . . . . . . . . . Combat Hostiles . | . . . . . . . . . . . . . . . . . . . . . . . . . Robots Corrupted 3 | . . . . . . . . . . . . 3 . . . . . . . . . . . . Combat Hostiles 3 | . . . . . . . . . . . . 3 . . . . . . . . . . . . Parts Fried 1 | . . . . . . . . . . . . 1 . . . . . . . . . . . . Impact Corruptions . | . . . . . . . . . . . . . . . . . . . . . . . . . Robots Melted . | . . . . . . . . . . . . . . . . . . . . . . . . . Combat Hostiles . | . . . . . . . . . . . . . . . . . . . . . . . . . Parts Melted 3 | . 1 . . . . . . . . . . . . . . . . . 1 1 . . . . Heat Transferred 2809 | 125 575 . . . . . . . . . . . . . . . . . 425 555 890 37 202 . Parts Sabotaged 1 | . . . . . . . . . . . . . . . . . . . . . . . . 1 Parts Stolen . | . . . . . . . . . . . . . . . . . . . . . . . . . Parts Stripped . | . . . . . . . . . . . . . . . . . . . . . . . . . Power Chain Reactions . | . . . . . . . . . . . . . . . . . . . . . . . . . Alert | -11 -10 -9 -8 -7 -7 -7 -7 -5 -5 -5 -5 -4 -4 -4 -4 -4 -4 -4 -4 -3 -3 -2 -2 -2 ------- Run | Yrd Mat Mat Mat Fac Sto Rec Scr Fac Upp Upp Zhi Pro Fac Was Fac Ext Cet Arc Hub Res Qua Res Tes Frg Maximum Alert Level 3 | . 1 2 2 . 1 . . . . . . . . . 2 3 2 1 1 . . . 1 2 Low Security (%) 67 | 100 35 53 6 100 36 100 . 100 . . . . 100 100 27 . . 69 65 100 100 100 77 72 Level 1 23 | . 64 42 82 . 63 . . . . . . . . . 32 56 29 30 34 . . . 22 9 Level 2 8 | . . 3 10 . . . . . . . . . . . 40 22 70 . . . . . . 17 Level 3 1 | . . . . . . . . . . . . . . . . 20 . . . . . . . . Level 4 . | . . . . . . . . . . . . . . . . . . . . . . . . . Level 5 . | . . . . . . . . . . . . . . . . . . . . . . . . . High Security . | . . . . . . . . . . . . . . . . . . . . . . . . . Max Security . | . . . . . . . . . . . . . . . . . . . . . . . . . Peak Influence 947 | 5 382 457 432 173 385 150 . 122 . . . . 180 52 577 947 546 324 374 184 135 191 372 645 Initial 514 | . . 129 190 150 72 120 . . . . . . 36 52 . 264 514 137 . 180 29 66 73 200 Average 171 | . 207 224 301 81 245 36 . 37 . . . . 49 11 291 461 432 138 189 120 35 75 132 216 Influence Increases 13032 | 10 725 992 559 723 602 252 . 733 210 . 10 588 421 . 1008 1495 371 237 703 366 618 377 835 1197 Destroy 0b10 Robot/C 6180 | . 500 500 400 380 340 60 . 480 80 . . 440 80 . 340 680 160 80 260 160 320 120 340 460 Destroy 0b10 Robot/NC 715 | 10 25 95 40 20 30 45 . 50 . . 10 . 30 . 90 60 10 15 40 25 35 10 40 35 Destroy Leader 1164 | . 106 186 76 120 94 . . 84 10 . . 20 22 . 66 64 . . 46 38 42 30 50 110 Allied During Kill 1142 | . . . . . . 15 . 29 . . . 113 . . . 522 164 95 204 . . . . . Successful Hack 404 | . 12 46 3 76 6 10 . 22 . . . . 21 . 55 8 . . . 40 . 46 54 5 Select Force Hacks 120 | . . . . . . 120 . . . . . . . . . . . . . . . . . . Disable Machine 675 | . . 15 15 60 90 . . 15 . . . . . . 45 30 15 45 60 . 75 15 180 15 Anti-Garrison Action 150 | . . . . . . . . . . . . . . . . . . . . . . . . 150 Destroy Structure 1342 | . 7 15 10 67 42 2 . 38 . . . . 58 . 232 116 22 2 78 58 86 51 126 332 Partial Spotted 180 | . . . . . . . . . . . . . 30 . 90 . . . 15 . . 15 . 30 Lose Combat Pursuer 960 | . 75 135 15 . . . . 15 120 . . 15 180 . 90 15 . . . 45 60 90 45 60 Influence Decreases 12421 | 10 418 848 679 893 453 562 . 690 237 16 10 530 328 151 468 1116 947 580 358 659 551 365 609 943 Entered New Map 2383 | . . 178 261 181 89 190 . . 16 4 . . 22 99 . 276 405 206 . 165 23 53 58 157 Time Decay 8136 | 10 398 640 398 682 254 342 . 431 221 12 10 340 256 52 431 550 362 354 168 474 498 292 475 486 Lost Part 992 | . 20 30 20 30 110 10 . 125 . . . 50 50 . 37 90 . . 50 20 30 20 . 300 Lost Ally 834 | . . . . . . 20 . 134 . . . 140 . . . 200 180 20 140 . . . . . Purge Threat 76 | . . . . . . . . . . . . . . . . . . . . . . . 76 . Squads Dispatched 75 | . 5 3 2 6 4 . . 6 . . . 1 9 . 10 4 . . 4 3 5 3 5 5 Investigation 25 | . 2 1 2 1 1 . . 1 . . . 1 7 . 3 1 . . 2 2 . 1 . . Extermination 26 | . . . . 4 . . . 3 . . . . 2 . 5 . . . . . 4 2 3 3 Reinforcement 19 | . 3 2 . 1 1 . . 2 . . . . . . 2 3 . . 2 1 1 . 1 . Assault 5 | . . . . . 2 . . . . . . . . . . . . . . . . . 1 2 Garrison . | . . . . . . . . . . . . . . . . . . . . . . . . . Intercept . | . . . . . . . . . . . . . . . . . . . . . . . . . Searches Triggered . | . . . . . . . . . . . . . . . . . . . . . . . . . Construction Impeded 5 | . . . . . . . . . . . . . . . 2 2 . . 1 . . . . . Haulers Reinforced 2 | . . . . 1 . . . . . . . . . . . . . . . . 1 . . . Active Scanning Responses . | . . . . . . . . . . . . . . . . . . . . . . . . . Cargo Convoy Interrupts . | . . . . . . . . . . . . . . . . . . . . . . . . . Stealth | -11 -10 -9 -8 -7 -7 -7 -7 -5 -5 -5 -5 -4 -4 -4 -4 -4 -4 -4 -4 -3 -3 -2 -2 -2 --------- Run | Yrd Mat Mat Mat Fac Sto Rec Scr Fac Upp Upp Zhi Pro Fac Was Fac Ext Cet Arc Hub Res Qua Res Tes Frg Distress Signals 36 | . 6 3 3 . 2 . . 1 . . . . 2 . . 2 2 . 2 9 . 1 1 2 Communications Jammed 42 | . . . . . . . . . . . . . . . . . . . . 1 21 19 1 . Distress Signals 42 | . . . . . . . . . . . . . . . . . . . . 1 21 19 1 . Times Spotted 502 | . 38 36 26 26 25 2 . 32 7 . . 33 22 1 36 33 11 4 23 25 28 16 38 40 Peak Tracking Total 12 | . 4 5 5 4 12 1 . 6 7 . . 9 8 1 7 3 5 2 7 5 4 8 8 12 Tactical Retreats 41 | . 4 5 1 . . . . 1 4 . . 1 7 . 4 1 . . . 1 3 3 3 3 Traps | -11 -10 -9 -8 -7 -7 -7 -7 -5 -5 -5 -5 -4 -4 -4 -4 -4 -4 -4 -4 -3 -3 -2 -2 -2 ------- Run | Yrd Mat Mat Mat Fac Sto Rec Scr Fac Upp Upp Zhi Pro Fac Was Fac Ext Cet Arc Hub Res Qua Res Tes Frg Traps Triggered 32 | . 3 3 2 . 2 . . 2 . . . 1 3 . . 2 . . 3 2 4 2 1 2 Indirectly . | . . . . . . . . . . . . . . . . . . . . . . . . . Trap Hack Attempts . | . . . . . . . . . . . . . . . . . . . . . . . . . Triggered . | . . . . . . . . . . . . . . . . . . . . . . . . . Disarmed . | . . . . . . . . . . . . . . . . . . . . . . . . . Reprogrammed . | . . . . . . . . . . . . . . . . . . . . . . . . . Reused . | . . . . . . . . . . . . . . . . . . . . . . . . . Traps Extracted . | . . . . . . . . . . . . . . . . . . . . . . . . . Installed . | . . . . . . . . . . . . . . . . . . . . . . . . . Triggered . | . . . . . . . . . . . . . . . . . . . . . . . . . Machines | -11 -10 -9 -8 -7 -7 -7 -7 -5 -5 -5 -5 -4 -4 -4 -4 -4 -4 -4 -4 -3 -3 -2 -2 -2 ---------- Run | Yrd Mat Mat Mat Fac Sto Rec Scr Fac Upp Upp Zhi Pro Fac Was Fac Ext Cet Arc Hub Res Qua Res Tes Frg Machines Disabled 52 | . 1 1 1 4 6 . . 1 . . . . . . 3 3 1 3 4 . 5 1 12 6 Max in Single Turn 2 | . 1 1 1 2 1 . . . . . . . . . 1 1 1 . 1 . 1 1 1 1 Garrison Access 7 | . . . . 1 1 . . 1 . . . . 1 . . . . . . 1 . 1 . 1 Network Hub 1 | . . . . . . . . . . . . . . . . . . . 1 . . . . . Machines Repaired . | . . . . . . . . . . . . . . . . . . . . . . . . . Machines Dismantled 3 | . . . . . . . . . . . . . . . . 1 1 . 1 . . . . . Machines Sabotaged . | . . . . . . . . . . . . . . . . . . . . . . . . . Overloaded Fab Kills . | . . . . . . . . . . . . . . . . . . . . . . . . . Hacking | -11 -10 -9 -8 -7 -7 -7 -7 -5 -5 -5 -5 -4 -4 -4 -4 -4 -4 -4 -4 -3 -3 -2 -2 -2 --------- Run | Yrd Mat Mat Mat Fac Sto Rec Scr Fac Upp Upp Zhi Pro Fac Was Fac Ext Cet Arc Hub Res Qua Res Tes Frg Machines Accessed 126 | . 6 11 2 13 5 8 1 8 1 1 4 3 10 . 18 6 1 . 2 5 4 6 8 3 Terminals 75 | . 5 8 2 9 4 3 . 4 1 . . 1 2 . 10 6 1 . 2 3 2 4 6 2 Fabricators 3 | . . . . 1 . . . . . . . . 1 . 1 . . . . . . . . . Repair Stations 4 | . . . . . . . . 1 . . . 1 . . 1 . . . . . . . 1 . Recycling Units 19 | . 1 1 . 1 . 5 . . . . . 1 6 . 3 . . . . . . 1 . . Scanalyzers 11 | . . 2 . 1 . . . 1 . . . . . . 2 . . . . 1 2 . 1 1 Garrison Access 8 | . . . . 1 1 . . 2 . . . . 1 . 1 . . . . 1 . 1 . . Total Hacks 270 | . 15 27 8 26 9 17 1 19 1 1 17 8 20 . 28 9 2 . 3 14 4 17 17 7 Successful 142 | . 6 16 5 10 3 13 1 9 1 1 17 3 10 . 15 6 . . 3 6 3 5 8 1 Failed 128 | . 9 11 3 16 6 4 . 10 . . . 5 10 . 13 3 2 . . 8 1 12 9 6 Catastrophic 27 | . 1 1 . 6 3 . . 2 . . . 1 1 . 3 1 . . . 1 1 3 1 2 Database Lockouts . | . . . . . . . . . . . . . . . . . . . . . . . . . Manual 95 | . 6 6 7 8 6 10 . 2 . . . 1 14 . 10 2 1 . 2 3 1 9 2 5 Terminals 164 | . 14 21 8 21 7 7 . 9 1 . . 1 6 . 15 9 2 . 3 7 2 13 13 5 Fabricators 4 | . . . . 1 . . . . . . . . 1 . 2 . . . . . . . . . Repair Stations 10 | . . . . . . . . 3 . . . 3 . . 2 . . . . . . . 2 . Recycling Units 35 | . 1 1 . 1 . 10 . . . . . 4 11 . 4 . . . . . . 3 . . Scanalyzers 22 | . . 5 . 2 . . . 2 . . . . . . 3 . . . . 4 2 . 2 2 Garrison Access 16 | . . . . 1 2 . . 5 . . . . 2 . 2 . . . . 3 . 1 . . Terminal Hacks 79 | . 4 10 3 5 2 1 1 4 1 1 17 1 3 . 8 5 . . 1 3 1 2 5 1 Record 8 | . . . . . . . . 1 1 . 5 . . . 1 . . . . . . . . . Part Schematic 5 | . . . . 1 . . . . . . 4 . . . . . . . . . . . . . Robot Analysis 5 | . . . . . . 1 . . . . 4 . . . . . . . . . . . . . Prototype ID Bank 7 | . 1 2 . . . . . . . . 4 . . . . . . . . . . . . . Open Door 6 | . . . . . 1 . . . . 1 . 1 . . 1 2 . . . . . . . . Branch Access Points 7 | . . 1 1 1 . . . . . . . . 1 . 1 . . . . 1 . 1 . . Alert Level 2 | . . . . 1 . . . 1 . . . . . . . . . . . . . . . . Unreport Threat 1 | . . . . . . . . . . . . . . . . . . . . . . . 1 . Locate Traps 7 | . 1 1 . 1 . . . . . . . . . . 1 2 . . . . . . 1 . Recall Reinforcements 1 | . . . . . . . . . . . . . . . . 1 . . . . . . . . Hauler Manifests 3 | . 1 1 . . . . . . . . . . . . 1 . . . . . . . . . Registered Components 6 | . . 1 1 1 . . . . . . . . 1 . . . . . . 1 . 1 . . Registered Prototypes 2 | . . . . . . . . . . . . . 1 . . . . . . 1 . . . . Zone Layout 17 | . 1 4 1 . 1 . . 2 . . . . . . 3 . . . 1 . 1 . 2 1 Proto ID Catalog 1 | . . . . . . . 1 . . . . . . . . . . . . . . . . . Protovariant Controls 1 | . . . . . . . . . . . . . . . . . . . . . . . 1 . Fabricator Hacks 2 | . . . . 1 . . . . . . . . 1 . . . . . . . . . . . Network Status 2 | . . . . 1 . . . . . . . . 1 . . . . . . . . . . . Repair Station Hacks 6 | . . . . . . . . 2 . . . 1 . . 2 . . . . . . . 1 . Scan Component 4 | . . . . . . . . 1 . . . 1 . . 1 . . . . . . . 1 . Repair 2 | . . . . . . . . 1 . . . . . . 1 . . . . . . . . . Recycling Unit Hacks 10 | . 1 1 . 1 . 6 . . . . . 1 . . . . . . . . . . . . Report Inventory 8 | . 1 1 . 1 . 4 . . . . . 1 . . . . . . . . . . . . Retrieve Components 2 | . . . . . . 2 . . . . . . . . . . . . . . . . . . Scanalyzer 12 | . . 4 . . . . . 1 . . . . . . 1 . . . . 2 2 . 2 . Insert Component 2 | . . 2 . . . . . . . . . . . . . . . . . . . . . . Analyze 1 | . . 1 . . . . . . . . . . . . . . . . . . . . . . Retrieve Study 9 | . . 1 . . . . . 1 . . . . . . 1 . . . . 2 2 . 2 . Garrison Access Hacks 5 | . . . . 1 . . . 1 . . . . 1 . . . . . . 1 . 1 . . Seal Access 5 | . . . . 1 . . . 1 . . . . 1 . . . . . . 1 . 1 . . Unauthorized Hacks 28 | . 1 1 2 2 1 6 . 1 . . . . 5 . 4 1 . . 2 . . 2 . . Terminals 17 | . 1 1 2 2 1 2 . 1 . . . . 1 . 1 1 . . 2 . . 2 . . Assimilate 1 | . . . . . 1 . . . . . . . . . . . . . . . . . . . Botnet 13 | . 1 1 2 2 . 1 . 1 . . . . 1 . 1 1 . . . . . 2 . . Skim 1 | . . . . . . 1 . . . . . . . . . . . . . . . . . . Sabotage 2 | . . . . . . . . . . . . . . . . . . . 2 . . . . . Fabricators . | . . . . . . . . . . . . . . . . . . . . . . . . . Repair Stations . | . . . . . . . . . . . . . . . . . . . . . . . . . Recycling Units 11 | . . . . . . 4 . . . . . . 4 . 3 . . . . . . . . . Tunnel 4 | . . . . . . 4 . . . . . . . . . . . . . . . . . . Fedlink 7 | . . . . . . . . . . . . . 4 . 3 . . . . . . . . . Scanalyzers . | . . . . . . . . . . . . . . . . . . . . . . . . . Garrison Access . | . . . . . . . . . . . . . . . . . . . . . . . . . Data Cores Recovered 3 | . . 1 . . . . . . . . . . . . 1 . . . . . . . 1 . Used 2 | . . 1 . . . . . . . . . . . . 1 . . . . . . . . . Hacking Detections 75 | . 4 9 2 8 4 4 . 5 . . . 2 5 . 12 2 2 . . 5 . 4 5 2 Full Trace Events 11 | . . . . 1 1 2 . 1 . . . 1 3 . . 1 . . . . . 1 . . Feedback Events 1 | . . . . . . . . . . . . . 1 . . . . . . . . . . . Corruption 1 | . . . . . . . . . . . . . 1 . . . . . . . . . . . Feedback Blocked . | . . . . . . . . . . . . . . . . . . . . . . . . . Robot Schematics Acquired . | . . . . . . . . . . . . . . . . . . . . . . . . . Robots Built . | . . . . . . . . . . . . . . . . . . . . . . . . . Authchips . | . . . . . . . . . . . . . . . . . . . . . . . . . Time . | . . . . . . . . . . . . . . . . . . . . . . . . . Total Robot Build Rating . | . . . . . . . . . . . . . . . . . . . . . . . . . Part Schematics Acquired 6 | . . 1 . 1 . . . . . . 4 . . . . . . . . . . . . . Parts Built . | . . . . . . . . . . . . . . . . . . . . . . . . . Authchips . | . . . . . . . . . . . . . . . . . . . . . . . . . Time . | . . . . . . . . . . . . . . . . . . . . . . . . . Total Part Build Rating . | . . . . . . . . . . . . . . . . . . . . . . . . . Part Studies Acquired 9 | . . 1 . . . . . 1 . . . . . . 1 . . . . 2 2 . 2 . Parts Repaired 2 | . . . . . . . . 1 . . . . . . 1 . . . . . . . . . Time 78 | . . . . . . . . 50 . . . . . . 28 . . . . . . . . . Parts Recycled . | . . . . . . . . . . . . . . . . . . . . . . . . . Recycled Matter . | . . . . . . . . . . . . . . . . . . . . . . . . . Retrieved Matter . | . . . . . . . . . . . . . . . . . . . . . . . . . Retrieved Components 3 | . . . . . . 3 . . . . . . . . . . . . . . . . . . Parts Scanalyzed 1 | . . 1 . . . . . . . . . . . . . . . . . . . . . . Part Schematics Acquired 1 | . . 1 . . . . . . . . . . . . . . . . . . . . . . Parts Damaged 1 | . . 1 . . . . . . . . . . . . . . . . . . . . . . Bothacking | -11 -10 -9 -8 -7 -7 -7 -7 -5 -5 -5 -5 -4 -4 -4 -4 -4 -4 -4 -4 -3 -3 -2 -2 -2 ------------ Run | Yrd Mat Mat Mat Fac Sto Rec Scr Fac Upp Upp Zhi Pro Fac Was Fac Ext Cet Arc Hub Res Qua Res Tes Frg Used RIF Installer . | . . . . . . . . . . . . . . . . . . . . . . . . . Robots Hacked 1 | . . . . . . . . . . . . . 1 . . . . . . . . . . . Non-combat 1 | . . . . . . . . . . . . . 1 . . . . . . . . . . . Combat . | . . . . . . . . . . . . . . . . . . . . . . . . . Robot Hacks Applied 1 | . . . . . . . . . . . . . 1 . . . . . . . . . . . find_chute 1 | . . . . . . . . . . . . . 1 . . . . . . . . . . . Relay Couplers Released 6 | . . . . . 2 . . . . . . . . . . . . . . . . . . 4 Machine Destruction 2 | . . . . . 2 . . . . . . . . . . . . . . . . . . . Programmers 4 | . . . . . . . . . . . . . . . . . . . . . . . . 4 Fabnet Peak Effective % . | . . . . . . . . . . . . . . . . . . . . . . . . . Robots Rewired 33 | . . . . . . 7 . . . . . 6 . . . 20 . . . . . . . . Allies Hacked . | . . . . . . . . . . . . . . . . . . . . . . . . . Hacks Repelled . | . . . . . . . . . . . . . . . . . . . . . . . . . Allies | -11 -10 -9 -8 -7 -7 -7 -7 -5 -5 -5 -5 -4 -4 -4 -4 -4 -4 -4 -4 -3 -3 -2 -2 -2 -------- Run | Yrd Mat Mat Mat Fac Sto Rec Scr Fac Upp Upp Zhi Pro Fac Was Fac Ext Cet Arc Hub Res Qua Res Tes Frg Total Allies 49 | . . . . . . 7 . . . . . 12 . . . 25 5 . . . . . . . Largest Group 16 | . . . . . . 7 7 7 . . . 6 . . . 16 14 9 8 . . . . . Highest-Rated Group 881 | . . . . . . 182 182 182 . . . 238 . . . 789 881 601 568 . . . . . Highest-Rated Ally 159 | . . . . . . 40 40 40 . . . 56 . . . 159 159 96 96 . . . . . Initial UFD Resources 72 | . . . . . . . . 38 38 38 38 42 42 60 60 66 66 66 66 70 70 72 72 72 Total Orders 13 | . . . . . . 2 . 6 . . . . . . 2 1 1 1 . . . . . . AID 3 | . . . . . . . . . . . . . . . . 1 1 1 . . . . . . EXPLORE 9 | . . . . . . 2 . 6 . . . . . . 1 . . . . . . . . . RETURN 1 | . . . . . . . . . . . . . . . 1 . . . . . . . . . Ally Attacks 469 | . . . . . . . . 16 . . . 109 . . . 158 75 43 68 . . . . . Total Damage 12842 | . . . . . . . . 397 . . . 2148 . . . 4809 1690 1422 2376 . . . . . Kills 73 | . . . . . . . . 2 . . . 15 . . . 29 10 4 13 . . . . . Allies Corrupted 2 | . . . . . . . . . . . . . . . . . . . 2 . . . . . Allies Melted 1 | . . . . . . . . . . . . . . . . 1 . . . . . . . . Intel | -11 -10 -9 -8 -7 -7 -7 -7 -5 -5 -5 -5 -4 -4 -4 -4 -4 -4 -4 -4 -3 -3 -2 -2 -2 ------- Run | Yrd Mat Mat Mat Fac Sto Rec Scr Fac Upp Upp Zhi Pro Fac Was Fac Ext Cet Arc Hub Res Qua Res Tes Frg Active Infowar (turns) 21300 | . . 1144 608 2355 275 722 1368 1673 528 316 119 1102 556 271 1101 1250 838 920 334 1142 1412 768 1255 1243 Optics 3084 | . . . . . . . . . . . . . . . . . . . . . . 586 1255 1243 Sensors 16276 | . . . . 1055 275 722 1368 1673 528 316 118 596 334 271 1101 1250 838 920 334 813 1270 723 844 927 IFF 720 | . . . . . . . . . . . . 500 220 . . . . . . . . . . . Terrain 2006 | . . . . . . . . . . . . . . . . . . . . . 158 658 886 304 Seismic 3052 | . . 1144 608 1300 . . . . . . . . . . . . . . . . . . . . Jamming 5282 | . . . . . . . . 73 40 . 1 6 428 . 208 52 . . . 1095 1106 663 813 797 Robot Analysis Total 5 | . . . . . . 1 . . . . 4 . . . . . . . . . . . . . Derelict Logs Recovered 2 | . . . . . . . . . 1 . . 1 . . . . . . . . . . . . Drone Launches 9 | . . . . . . 2 . 6 . . . . . . 1 . . . . . . . . . Drone Recoveries 4 | . . . . . . . . 3 . . . . . . 1 . . . . . . . . . Exploration | -11 -10 -9 -8 -7 -7 -7 -7 -5 -5 -5 -5 -4 -4 -4 -4 -4 -4 -4 -4 -3 -3 -2 -2 -2 ------------- Run | Yrd Mat Mat Mat Fac Sto Rec Scr Fac Upp Upp Zhi Pro Fac Was Fac Ext Cet Arc Hub Res Qua Res Tes Frg Turns Passed 26484 | 74 1261 2293 948 2706 541 1092 1490 1879 546 316 119 1217 711 271 1200 1591 838 920 417 1210 1560 768 1255 1261 Spaces Moved 16947 | 38 564 1044 413 1283 153 593 1180 989 569 313 155 1014 911 326 1530 1301 440 65 228 885 950 559 726 718 Core 129 | 7 . . . . . . . . . . . . . . . . . . . . . . . 122 Treads 3633 | . 429 1044 413 1283 59 . . 159 . . . . . . . . 246 . . . . . . . Legs 4491 | 31 135 . . . 94 63 . . . . . . . . . . 159 65 228 885 950 559 726 596 Wheels 2165 | . . . . . . 530 1180 455 . . . . . . . . . . . . . . . . Hover 6529 | . . . . . . . . 375 569 313 155 1014 911 326 1530 1301 35 . . . . . . . Flight . | . . . . . . . . . . . . . . . . . . . . . . . . . Fastest Speed 30 | 50 120 160 156 156 122 120 120 53 58 60 54 54 30 42 37 43 107 120 120 105 95 95 100 50 Average Speed 102 | 107 150 160 156 164 159 120 120 108 72 97 58 87 48 42 45 50 141 120 120 107 103 95 107 103 Slowest Speed 270 | 120 160 240 160 246 270 193 120 246 132 132 127 116 116 45 113 120 240 120 190 120 105 100 109 120 Overloaded Moves 12 | . . . . . . . . . . . . . 12 . . . . . . . . . . . Propulsion Burnouts . | . . . . . . . . . . . . . . . . . . . . . . . . . Robots Hopped . | . . . . . . . . . . . . . . . . . . . . . . . . . Potential Cave-ins 48 | . . . . 2 . . . . . . . . . . . . . . . . . . . 46 Cave-ins Triggered . | . . . . . . . . . . . . . . . . . . . . . . . . . Teleports 1 | . . . . . . . . . . . . . . . . . . . . . . . 1 . Exploration Rate (%) 58 | 4 96 87 36 44 33 99 86 36 57 49 60 77 28 90 42 88 73 73 36 30 92 26 80 35 Regions Visited 24 Branch Regions 14 Pre-discovered Areas 8 | . . . . . . 4 . . . . 3 . 1 . . . . . . . . . . . Known Exits Taken 17 | . . . . 1 1 1 1 . 1 1 1 1 . . 1 1 1 1 1 1 1 1 1 . Unknown Exits Taken 5 | 1 1 1 1 . . . . 1 . . . . . . . . . . . . . . . . Scrap Searched 12 | . . . . . . . 4 . 4 4 . . . . . . . . . . . . . . Spaces Dug 328 | . 4 5 3 37 . 2 . 18 5 . . 3 22 . 39 13 . . 5 18 42 15 24 73 Terrain Destroyed 815 | . 5 6 4 79 46 2 . 18 55 . . 82 48 . 123 50 . . 24 41 51 17 46 118 Melee 210 | . . . . 33 . 2 . 18 5 . . 2 21 . 37 13 . . 1 1 28 13 20 16 Projectile 229 | . 5 6 4 6 1 . . . . . . . . . . . . . 23 32 22 4 26 100 AOE 367 | . . . . 40 45 . . . 50 . . 78 25 . 84 37 . . . 8 . . . . Terrain Rammed . | . . . . . . . . . . . . . . . . . . . . . . . . . Walls Destroyed . | . . . . . . . . . . . . . . . . . . . . . . . . . Machines Disabled . | . . . . . . . . . . . . . . . . . . . . . . . . . Actions | -11 -10 -9 -8 -7 -7 -7 -7 -5 -5 -5 -5 -4 -4 -4 -4 -4 -4 -4 -4 -3 -3 -2 -2 -2 --------- Run | Yrd Mat Mat Mat Fac Sto Rec Scr Fac Upp Upp Zhi Pro Fac Was Fac Ext Cet Arc Hub Res Qua Res Tes Frg Total 23845 | 54 816 1484 618 1672 363 936 1253 1634 688 327 180 1297 1096 454 1896 2108 630 900 294 1074 1296 714 1004 1057 Wait 4012 | . 125 262 110 157 96 197 49 389 92 2 . 131 59 115 206 515 113 827 6 82 129 80 106 164 Move 16925 | 37 563 1043 413 1282 152 592 1179 988 568 312 154 1013 911 325 1529 1300 439 64 227 884 949 558 725 718 Hop . | . . . . . . . . . . . . . . . . . . . . . . . . . Pick Up 266 | 2 14 21 9 22 15 6 6 27 2 4 4 11 9 3 11 21 15 . 2 18 16 8 11 9 Fast Attach 177 | 6 6 11 2 6 10 8 . 18 4 1 6 7 13 2 7 2 8 2 8 7 15 5 16 7 Attach 158 | . 2 5 4 6 13 1 1 16 1 . 2 11 12 1 11 19 3 . 2 7 11 3 5 22 Detach 56 | . . . . . 2 1 1 6 2 1 1 5 7 1 8 5 . . . 2 6 1 . 7 Swap 251 | 1 7 16 12 34 15 4 10 13 4 . 1 9 10 . 11 9 7 . 4 17 25 8 19 15 Drop 313 | . 11 19 10 27 10 13 7 31 4 6 9 11 16 3 12 11 22 2 2 16 25 10 22 14 Fire 596 | 8 88 107 58 23 17 . . 2 4 . . 34 8 4 26 12 4 1 36 39 49 4 27 45 Melee 773 | . . . . 115 33 23 . 136 7 . 3 8 51 . 75 68 11 4 3 2 71 37 70 56 Ram . | . . . . . . . . . . . . . . . . . . . . . . . . . Kick 1 | . . . . . . . . . . . . . . . . . . . 1 . . . . . Crush . | . . . . . . . . . . . . . . . . . . . . . . . . . Escape Stasis 37 | . . . . . . . . 8 . . . . . . . 26 . . . . . . 3 . Rewire 261 | . . . . . . 91 . . . 1 . 57 . . . 112 . . . . . . . . Trap . | . . . . . . . . . . . . . . . . . . . . . . . . . Miscellaneous 19 | . . . . . . . . . . . . . . . . 8 8 . 3 . . . . . Route ------- -11/Scrapyard -10/Materials (discovered 6 exits: *Mat x3 / [*Min x2] / [*Sub]) -9/Materials (discovered 2 exits: *Mat / *Min) -8/Materials (discovered 2 exits: *Fac x2) -7/Factory (discovered 6 exits: *Fac x2 / *Sto x2 / Low x2) -7/Storage -7/Recycling (discovered 2 exits: *Fac / *Scr) -7/Scraptown (discovered 2 exits: *Fac x2) -5/Factory (discovered 3 exits: *Fac x2 / *Upp) -5/Upper Caves -5/Upper Caves -5/Zhirov -4/Proximity Caves -4/Factory (discovered 6 exits: *Res x2 / *Upp x2 / Ext x2) -4/Waste -4/Factory (discovered 5 exits: *Res / Upp x2 / *Ext x2) -4/Extension (discovered 2 exits: *Res / *Cet) -4/Cetus (discovered 2 exits: *Res / *Arc) -4/Archives -4/Hub_04(d) (discovered 2 exits: *Res x2) -3/Research (discovered 5 exits: *Res x2 / *Arm / *Qua x2) -3/Quarantine -2/Research (discovered 2 exits: *Tes x2) -2/Testing (discovered 3 exits: *Acc / *Sec / *Frg) -2/Protoforge (discovered 1 exit: *Acc) History --------- Turn | Location | Event 7 | -11/Scrapyard | Discovered new exit (range 15) 75 | -11/Scrapyard | Entered Materials 99 | -10/Materials | Discovered new exit (range 16) 313 | -10/Materials | Build established: Mutant 458 | -10/Materials | Destroyed 7 combat bots 474 | -10/Materials | Discovered new exit (range 11) 647 | -10/Materials | Discovered new exit (range 7) 675 | -10/Materials | Derelicts attacked the area 896 | -10/Materials | Discovered new exit (range 4) 1030 | -10/Materials | Core integrity fell below 50% 1051 | -10/Materials | Discovered new exit (range 13) 1200 | -10/Materials | Discovered new exit (range 16) 1336 | -10/Materials | Entered another Materials area 1336 | -9/Materials | Evolved 2 slots: Propulsion x1, Utility x1 1728 | -9/Materials | Identified exit to Mines 1882 | -9/Materials | Discovered new exit (range 5) 2777 | -9/Materials | Build established: Scavenger-Mutant 3629 | -9/Materials | Entered another Materials area 3629 | -8/Materials | Evolved 2 slots: Propulsion x1, Weapon x1 3983 | -8/Materials | Discovered new exit (range 9) 4006 | -8/Materials | Build established: Scavenger-Tank 4527 | -8/Materials | Discovered new exit (range 14) 4577 | -8/Materials | Entered Factory 4577 | -7/Factory | Evolved 2 slots: Power x1, Utility x1 5191 | -7/Factory | Build established: Scavenger-Mutant 5615 | -7/Factory | Build established: Mutant 5836 | -7/Factory | Discovered new exit (range 13) 5871 | -7/Factory | Identified exit to Factory 5947 | -7/Factory | Discovered exit to Factory (range 15) 6758 | -7/Factory | Identified exit to Storage 6758 | -7/Factory | Identified exit to Lower Caves 7283 | -7/Factory | Entered Storage 7445 | -7/Storage | Lost 3 parts (1n2u) 7528 | -7/Storage | Destroyed 12 combat bots 7534 | -7/Storage | Lost 6 parts (2p3n1u) 7562 | -7/Storage | Found Prototype Launcher 7818 | -7/Storage | Used back door to open Recycling access 7818 | -7/Storage | Discovered new exit (range 5) 7823 | -7/Storage | Identified exit to Recycling 7824 | -7/Storage | Entered Recycling 7825 | -7/Recycling | Met a Zionite searching for Scraptown 7916 | -7/Recycling | Build established: Gladiator 7945 | -7/Recycling | Discovered new exit (range 78) 8075 | -7/Recycling | Core integrity fell below 50% 8841 | -7/Recycling | Scanned before Scraplab entrance 8847 | -7/Recycling | Build established: Commander-Gladiator 8858 | -7/Recycling | Entered Scraplab 8868 | -7/Recycling | Discovered new exit (range 3) 8869 | -7/Recycling | Identified exit to Scraptown 8916 | -7/Recycling | Entered Scraptown 8916 | -7/Scraptown | Accompanied by 7 allies 8916 | -7/Scraptown | System corruption cleaned by C-Scrubber 9040 | -7/Scraptown | Identified Rocket Array 9199 | -7/Scraptown | Discovered new exit (range 11) 9278 | -7/Scraptown | Visited Shadow of the Wyrm 9304 | -7/Scraptown | Visited SPCMW 9359 | -7/Scraptown | Visited Assassins FH 9390 | -7/Scraptown | Visited CR-KLE's Repair Center 9400 | -7/Scraptown | Visited Red Mages 9440 | -7/Scraptown | Heard Great Nut preacher, LISTEN AND RECITE! 9603 | -7/Scraptown | Visited Fellowship of the Rings 9633 | -7/Scraptown | Visited UFD Registry 9633 | -7/Scraptown | Registered with UFD as "Quantumwarp" 9661 | -7/Scraptown | Visited A0-MCA Data Center 9669 | -7/Scraptown | Given a B rating by A0-MCA 9671 | -7/Scraptown | Found A0-MCA's Component Scanner 9702 | -7/Scraptown | Visited Derelict Rescue Squad 9718 | -7/Scraptown | Visited Science Guys 9809 | -7/Scraptown | Build established: Commander-Mutant 9814 | -7/Scraptown | Visited Scrapoid Pod Storage 9836 | -7/Scraptown | Visited Supply Room 9852 | -7/Scraptown | Visited Supply Room 9870 | -7/Scraptown | Visited Scrapoid Research Area 9894 | -7/Scraptown | Visited Junk Repository 9938 | -7/Scraptown | Visited LU-1G1's Boring Crew 9957 | -7/Scraptown | Visited Curators Association 10061 | -7/Scraptown | Found Scrapoid Pod 10176 | -7/Scraptown | CR-KLE repaired 10 parts 10312 | -7/Scraptown | Met Optimus 10312 | -7/Scraptown | Accepted into 0bPrime 10350 | -7/Scraptown | Build established: Commander-Gladiator 10371 | -7/Scraptown | Discovered new exit (range 5) 10375 | -7/Scraptown | Identified exit to Factory 10406 | -7/Scraptown | Entered Factory 10406 | -5/Factory | Accompanied by 7 allies 10406 | -5/Factory | Evolved 4 slots: Propulsion x1, Utility x3 10695 | -5/Factory | Lost 6 allies 10895 | -5/Factory | Repaired Phase Shifter 10954 | -5/Factory | Build established: Gladiator 11190 | -5/Factory | Discovered new exit (range 15) 11307 | -5/Factory | Identified exit to Factory 11555 | -5/Factory | Build established: Scavenger-Gladiator 11687 | -5/Factory | System corruption reached 10% 11723 | -5/Factory | Lost 4 parts (1p3u) 12104 | -5/Factory | Discovered new exit (range 43) 12195 | -5/Factory | Discovered exit to Factory (range 45) 12285 | -5/Factory | Entered Upper Caves 12286 | -5/Upper Caves | Encountered a Warlord checkpoint 12319 | -5/Upper Caves | Build established: Gladiator 12698 | -5/Upper Caves | Learned location of 1 exit from Factory 12777 | -5/Upper Caves | Discovered new exit (range 7) 12829 | -5/Upper Caves | Identified exit to Upper Caves 12831 | -5/Upper Caves | Entered another Upper Caves area 13087 | -5/Upper Caves | Discovered new exit (range 7) 13090 | -5/Upper Caves | Identified exit to Zhirov 13147 | -5/Upper Caves | Entered Zhirov 13147 | -5/Zhirov | Discovered new exit (range 3) 13158 | -5/Zhirov | Met Zhirov 13170 | -5/Zhirov | Learned location of Quarantine (-3) 13170 | -5/Zhirov | Learned location of Testing (-2) 13170 | -5/Zhirov | Learned location of Command (-1) 13175 | -5/Zhirov | Zhirov requested help retrieving the SGEMP Prototype 13186 | -5/Zhirov | Found Alien Artifact 13194 | -5/Zhirov | Found Alien Artifact 13194 | -5/Zhirov | Identified Integrated Dissipator 13194 | -5/Zhirov | Installed Integrated Dissipator, increased core heat dissipation (+20) 13264 | -5/Zhirov | Identified exit to Proximity Caves 13266 | -5/Zhirov | Entered Proximity Caves 13267 | -4/Proximity Caves | Greeted by an Infiltrator in a former 0b10 base 13367 | -4/Proximity Caves | Former 0b10 base attacked by MAIN.C 13528 | -4/Proximity Caves | Lost 4 allies 13766 | -4/Proximity Caves | 0b10 base defense nominally successful 13885 | -4/Proximity Caves | Lost 12 allies 14030 | -4/Proximity Caves | Scrapoid Pod released 04P07-D (x5) 14098 | -4/Proximity Caves | Lost 4 allies 14295 | -4/Proximity Caves | Lost 5 allies 14320 | -4/Proximity Caves | Lost 3 parts (1p1u1w) 14483 | -4/Proximity Caves | Entered Factory 14483 | -4/Factory | Evolved 2 slots: Propulsion x1, Utility x1 14484 | -4/Factory | Identified exit to Research 14492 | -4/Factory | Identified exit to Upper Caves 14492 | -4/Factory | Identified exit to Extension 14500 | -4/Factory | Watched by a mysterious "MATRIX" hacker 14653 | -4/Factory | Loaded intel: 8 recycling unit locations 14701 | -4/Factory | Found Exp. Signal Interpreter 14782 | -4/Factory | Learned location of Protoforge (-2) 14985 | -4/Factory | Discovered exit to Research (range 16) 15019 | -4/Factory | Build established: Mutant 15194 | -4/Factory | Sucked down chute 15194 | -4/Factory | Entered Waste 15194 | -4/Waste | The area was eerily silent 15264 | -4/Waste | Discovered new exit (range 12) 15311 | -4/Waste | Identified exit to Factory 15404 | -4/Waste | A Compactor rumbled back to life 15404 | -4/Waste | Spotted C-40 Crusher 15418 | -4/Waste | Destroyed C-40 Crusher 15465 | -4/Waste | Entered Factory 15856 | -4/Factory | Repaired Cmb. Gravmag System 16030 | -4/Factory | Discovered exit to Research (range 12) 16079 | -4/Factory | Build established: Gladiator 16088 | -4/Factory | Loaded intel: 8 recycling unit locations 16376 | -4/Factory | Found Exp. Hacking Suite 16664 | -4/Factory | Build established: Hacker-Gladiator 16665 | -4/Factory | Entered Extension 16961 | -4/Extension | Rescued A7 16996 | -4/Extension | Build established: Gladiator 16997 | -4/Extension | Lost 3 parts (2n1u) 17081 | -4/Extension | Core integrity fell below 50% 17091 | -4/Extension | Lost 3 allies 17422 | -4/Extension | Spotted B-86 Titan 17439 | -4/Extension | Allies destroyed B-86 Titan 17451 | -4/Extension | Spotted B-86 Titan 17457 | -4/Extension | Allies destroyed B-86 Titan 17485 | -4/Extension | Lost 3 allies 17803 | -4/Extension | Build established: Commander-Gladiator 17852 | -4/Extension | Rescued a captive Derelict 17853 | -4/Extension | Rescued a captive Derelict 17940 | -4/Extension | Disrupted transfer network 18029 | -4/Extension | Lost 4 allies 18077 | -4/Extension | Rescued a captive Derelict 18078 | -4/Extension | Rescued a captive Derelict 18211 | -4/Extension | Discovered exit to Research (range 10) 18212 | -4/Extension | Discovered new exit (range 6) 18230 | -4/Extension | Identified exit to Cetus 18256 | -4/Extension | Entered Cetus 18256 | -4/Cetus | Accompanied by 14 allies (A7) 18257 | -4/Cetus | Attached CPS modules to A7 18261 | -4/Cetus | Acquired a Cetus Manufacturing Module code from A7 18274 | -4/Cetus | Spotted Cetus Guard 18274 | -4/Cetus | Spotted Cetus Guard 18276 | -4/Cetus | Spotted Cetus Guard 18276 | -4/Cetus | Spotted Cetus Guard 18278 | -4/Cetus | Attached CPS modules to Cetus Guard 18279 | -4/Cetus | Allies destroyed Cetus Guard 18293 | -4/Cetus | Allies destroyed Cetus Guard 18300 | -4/Cetus | Allies destroyed Cetus Guard 18303 | -4/Cetus | Allies destroyed Cetus Guard 18329 | -4/Cetus | Lost 7 allies 18396 | -4/Cetus | Started Cetus Manufacturing Module 18421 | -4/Cetus | Manufactured an Enhanced Grunt 18431 | -4/Cetus | Escorted A7 to Cetus Mainframe 18446 | -4/Cetus | Manufactured an Enhanced Grunt 18471 | -4/Cetus | Manufactured an Enhanced Grunt 18496 | -4/Cetus | Manufactured an Enhanced Grunt 18521 | -4/Cetus | Manufactured an Enhanced Grunt 18644 | -4/Cetus | Discovered new exit (range 15) 18680 | -4/Cetus | Spotted Cetus Guard 18683 | -4/Cetus | Allies destroyed Cetus Guard 18684 | -4/Cetus | Spotted Cetus Guard 18689 | -4/Cetus | Allies destroyed Cetus Guard 18693 | -4/Cetus | Spotted Cetus Guard 18693 | -4/Cetus | Allies destroyed Cetus Guard 18714 | -4/Cetus | Discovered exit to Research (range 15) 18724 | -4/Cetus | Met Revision 17 18842 | -4/Cetus | Build established: Commander-Mutant 18913 | -4/Cetus | Murdered A7 18918 | -4/Cetus | Extracted ID and sensor layout for unrecognized location from A7's data core 18921 | -4/Cetus | Found Med. Regenerative Plating 19006 | -4/Cetus | Security sweep announced 19078 | -4/Cetus | Identified exit to Archives 19094 | -4/Cetus | Entered Archives 19094 | -4/Archives | Accompanied by 9 allies 19224 | -4/Archives | Build established: Scavenger-Mutant 19238 | -4/Archives | Discovered new exit (range 16) 19256 | -4/Archives | Identified exit to Hub_04(d) 20014 | -4/Archives | Entered Hub_04(d) 20014 | -4/Hub_04(d) | Accompanied by 8 allies 20107 | -4/Hub_04(d) | Discovered exit to Research (range 15) 20234 | -4/Hub_04(d) | Discovered exit to Research (range 6) 20323 | -4/Hub_04(d) | Network Hub disabled 20330 | -4/Hub_04(d) | Spotted Lightning 20331 | -4/Hub_04(d) | Spotted Lightning 20344 | -4/Hub_04(d) | Spotted Lightning 20386 | -4/Hub_04(d) | Core integrity fell below 20% 20394 | -4/Hub_04(d) | Destroyed Lightning 20404 | -4/Hub_04(d) | Destroyed Lightning 20404 | -4/Hub_04(d) | Spotted Lightning 20409 | -4/Hub_04(d) | Spotted Lightning 20411 | -4/Hub_04(d) | System corruption reached 10% 20416 | -4/Hub_04(d) | Spotted Lightning 20431 | -4/Hub_04(d) | Entered Research 20431 | -3/Research | Evolved 2 slots: Utility x1, Weapon x1 20460 | -3/Research | Lost 4 parts (1p2n1w) 20631 | -3/Research | Revision forces began assault on 0b10 20632 | -3/Research | Met up with Revision 17++ 20808 | -3/Research | Identified exit to Armory 20808 | -3/Research | Identified exit to Quarantine 21131 | -3/Research | Research terminal network offline 21356 | -3/Research | Spotted Striker 21379 | -3/Research | Discovered new exit (range 3) 21457 | -3/Research | Discovered new exit (range 15) 21470 | -3/Research | Build established: Scavenger-Skirmisher 21489 | -3/Research | Spotted Striker 21496 | -3/Research | Spotted Striker 21521 | -3/Research | Destroyed Striker 21528 | -3/Research | System corruption reached 10% 21547 | -3/Research | Identified exit to Research 21641 | -3/Research | Entered Quarantine 21653 | -3/Quarantine | Found Alien Slashing Weapon 21653 | -3/Quarantine | Identified Sigix Broadsword 21672 | -3/Quarantine | Found Alien Artifact 21672 | -3/Quarantine | Identified Phase Redirector 21840 | -3/Quarantine | Found Alien Artifact 21842 | -3/Quarantine | Identified Subatomic Replicator 21842 | -3/Quarantine | Used Subatomic Replicator to create Alien Artifact 21950 | -3/Quarantine | Build established: Scavenger-Mutant 22248 | -3/Quarantine | Found Alien Energy Cannon 22586 | -3/Quarantine | Discovered exit to Research (range 12) 22985 | -3/Quarantine | Found Gamma Bomb Array 23047 | -3/Quarantine | System corruption reached 30% 23201 | -3/Quarantine | Entered Research 23201 | -2/Research | Evolved 2 slots: Utility x2 23448 | -2/Research | Build established: Scavenger-Assassin 23815 | -2/Research | Identified exit to Testing 23969 | -2/Research | Entered Testing 23994 | -2/Testing | Protovariant out of control (PL-8W4B17SG8V) 23994 | -2/Testing | Unleashed a protovariant (PL-8W4B17SG8V) 24160 | -2/Testing | Found Hyp. Multirail 24303 | -2/Testing | System corruption reached 10% 24393 | -2/Testing | Found Exp. Core Analyzer 24447 | -2/Testing | Discovered new exit (range 5) 24920 | -2/Testing | Spotted Investigator 24920 | -2/Testing | Scanned by Researcher 24922 | -2/Testing | Identified Supercharged TR 24922 | -2/Testing | Warped through subspace 24944 | -2/Testing | Destroyed Investigator 24995 | -2/Testing | Identified Core Cannon 25071 | -2/Testing | Identified exit to Access 25141 | -2/Testing | Spotted Fortress 25215 | -2/Testing | Discovered new exit (range 6) 25215 | -2/Testing | Discovered new exit (range 7) 25219 | -2/Testing | Identified exit to Section 7 25223 | -2/Testing | Identified exit to Protoforge 25224 | -2/Testing | Entered Protoforge 25328 | -2/Protoforge | Spotted Hotshot 25531 | -2/Protoforge | Superfortress began startup sequence 25730 | -2/Protoforge | Spotted Hotshot 25788 | -2/Protoforge | Destroyed Hotshot 25795 | -2/Protoforge | Spotted Hotshot 25808 | -2/Protoforge | Destroyed Hotshot 25878 | -2/Protoforge | Discovered exit to Access (range 11) 26022 | -2/Protoforge | Spotted Hotshot 26022 | -2/Protoforge | Spotted Hotshot 26031 | -2/Protoforge | Destroyed Hotshot 26039 | -2/Protoforge | System corruption reached 30% 26082 | -2/Protoforge | Destroyed Hotshot 26202 | -2/Protoforge | Found Prototype Ballistic Gun 26202 | -2/Protoforge | Identified Cep. XC Strikerail 26205 | -2/Protoforge | Found Cep. XC Strikerail 26207 | -2/Protoforge | Found Cep. XC Strikerail 26211 | -2/Protoforge | Additional patrols dispatched to research labs 26236 | -2/Protoforge | Spotted Immortal 26408 | -2/Protoforge | Core integrity fell below 50% 26420 | -2/Protoforge | Spotted Immortal 26430 | -2/Protoforge | Destroyed 11 combat bots 26459 | -2/Protoforge | Lost 18 parts (2p5n5u6w) 26461 | -2/Protoforge | Spotted AP7-3 26461 | -2/Protoforge | Spotted AP7-3 26467 | -2/Protoforge | Spotted EXE-6 26467 | -2/Protoforge | Spotted EXE-6 26474 | -2/Protoforge | Spotted Decapitator 26475 | -2/Protoforge | Spotted Decapitator 26482 | -2/Protoforge | Core integrity fell below 20% 26485 | -2/Protoforge | Destroyed by AP7-3 with Enhanced Gamma Rifle Last Messages --------------- 26472_ K-01 Serf collects debris. 26473_ Penetrated by Slug. 26473_ Forge Pylon damaged. 26476_ EXE-6 springs to life. 26476_ Penetrated by Slug. 26476_ Hds. Centrium Leg destroyed. 26476_ Forge Pylon damaged. 26476_ Penetrated by Slug. 26476_ EXE-6 springs to life. 26476_ Penetrated by Slug. 26481_ Decapitator springs to life. 26481_ Knocked back. 26481_ M-36 Artificer knocked back. 26481_ Forge Pylon damaged. 26482_ Penetrated by Slug. 26482_ Exp. Hacking Suite destroyed. 26482_ System corrupted by crushing effect (+5). 26482_ Knocked back. 26484_ Centrium Leg destroyed. 26484_ Penetrated by Slug. Map ----- +----------------------------------------------------+ | # #??????????????????????????????????? | | + #??????????????????????????????????? | | ####### #??????????????????????????????????? | | #?????######??????????????????????????????????? | | #?????????????????????????????????????????????? | | #?????????????????????????????????????????????? | | #?????????????????????????????????????????????? | | #???##????????????????????????????????????????? | | #?## ###??????????????????????????????????????? | | #? #?????? ????????????????????????? | | # """ #????# "??????????????????????? | | # """ #????# " ????????????????????? | | / """ #????# " "" ?????????????????? | | # #????# """"" " ?"??????????????? | | # #????# "" "" " """?????????????? | | #?######????# "" " "" """"????????????? | | #???? #????# "" " """"""???????????? | | #??""" #????# "" " """"""???????????? | | # """" #????# " """""""??????????? | | + """" #????# "? """""""??????????? | | # """" #????# """ " " """"""""""""?????? | | #?? #????# " "" """"""""""""""???? | | #????###????# """ " """""""""""""""""? | | #???????????# " """ """"" " """""""""""""""""" | | #???????????# "c " """""""""""""""""" | | #???????????# @ " """"""""""""""""" | | #???????????# c """"""""""""""""" | | #???????????# """"""" "" """"""""""""""""" | | #####???????# """ " " """""""""""""""" | | # #???????# " " """"""""""""""" | | # #???????# "" """""""""""""" | | # #???????# "" " """"""""""""" | | # #???????# "" """""""""""" | | # #???????# "" " """"""""""" | | # #???????# " """""""" | | # #???###?# " | | ##"###### ### " " | | + 7" """ " | | + % "" | | + " " = " " | | ####### ### " " "" | | #?????###?# " " " """ "???" | | #### #?????????# "" "" " " " "??? | | ???# #?????????# " "" " ?? | | ???# #?????????# "" "" " """"" "" "? | | ???#+#?????????# "" " " " " | | ???????????????# "" "" " | | ???????????????# " "" """" | | ???????????????# "" "" """"""""""" ??? | | ???????????????# """ " " " ? ???? | +----------------------------------------------------+ Best States ------------- Heat Dissipation 97 Coolant Potential 120 Energy Generation 44 Energy Capacity 890 Matter Stores 300 Matter Capacity 300 Sight Range 22 Robot Scan Range 18 Terrain Scan Range 14 Terrain Scan Density 210 Jamming Range 14 Additional Mass Support 6 Armor Coverage 675 Resistance: TH 15 Resistance: EX 25 Core Shielding 20 Propulsion Shielding 90 Weapon Shielding 90 Melee Speed Boost 20 Phase Shifting 10 Evasion (%) 70 Targeting Accuracy 6 Melee Accuracy 8 Target Analysis 8 Core Analysis 8 Recoil Reduction 4 Offensive Hacking 30 Defensive Hacking 12 Item Schematics ----------------- Mni. Grenade Launcher | -9/Materials | Scanalyzed Adv. Melee Analysis Suite | -7/Factory | Hacked Assault Drone Bay | -5/Zhirov | Free Exp. Heat Sink | -5/Zhirov | Free Exp. Optical Array | -5/Zhirov | Free Imp. Arc Thrower | -5/Zhirov | Free Robot Schematics ------------------ None Fabricated ------------ Nothing Repaired ---------- Phase Shifter | 2% | -5/Factory Cmb. Gravmag System | 16% | -4/Factory Studied --------- Autogun | -9/Materials | Hacked Chainsword | -5/Factory | Hacked Imp. Antigrav System | -4/Factory | Hacked Lgt. Antimatter Reactor | -3/Research | Hacked Myomer Leg | -3/Research | Hacked Railgun | -3/Quarantine | Hacked Biometal Leg | -3/Quarantine | Hacked Enh. Nova Cannon | -2/Testing | Hacked Mic. Antimatter Reactor | -2/Testing | Hacked Alien Tech Used ----------------- Integrated Dissipator Sigix Broadsword Phase Redirector Subatomic Replicator Supercharged TR Core Cannon Achievements -------------- None Challenges ------------ None Game ------ Seed XenonRocketMaxwheels Manual? 0 Play Time 06:30:34 Cumulative 604.1 hours Start 2026.08.28 @ 06:51:15 End 2026.09.01 @ 08:00:46 Sessions 13 Manual Loads 0 Difficulty Rogue Special Mode None Game No. 205 Rogue 184 Adventurer 21 Explorer 0 Win Type - Total 32 Types 18/2/7/1/0/0/0/3/0/1 Lore% 49 Gallery% 70 Achievement% 70 Wizard Run 0 Options --------- Layout 1 ASCII 0 Keyboard 0 Movement Mouse Keybinds 0 Fullscreen 2 Font 32/SmallcapsGlow Map View 77x35 Zoom Use 0% Tactical HUD 1 Map Filters NONE Filters NONE Steam 1 RUN: 242a57d3-dfbf-4bb0-9c61-7af4668caeb9